Cogmind - Beta 15 @@@ ROGUE MODE // 2025.08.19 @ 22:39:49 Player: SnailSD Result: Destroyed by G-34 Mercenary with Small Laser Performance ------------- Evolutions (0) 0 Regions Visited (2) 400 Robots Destroyed (29) 145 Value Destroyed (506) 506 Prototype IDs (0) 0 Alien Tech Used (0) 0 Bonus (0) 0 TOTAL SCORE: 1051 Bonus ------- None Cogmind --------- Core Integrity 0/250 Matter 280/300 Energy 30/125 System Corruption 7% Temperature Hot (287) Movement Treading (160) Location -10/Mines Parts ------- > --- POWER (1) -------- Light Ion Engine > --- PROPULSION (2) --- Light Treads Aluminum Leg > --- UTILITY (2) ------ Medium Storage Unit Utility Shielding > --- WEAPON (2) ------- Small Laser > --- INVENTORY (10) --- Wheel Wheel Hacking Suite Rocket Launcher Datajack Peak State ------------ > --- POWER ------------ Light Ion Engine > --- PROPULSION ------- Light Treads Light Treads > --- UTILITY ---------- Medium Storage Unit Utility Shielding > --- WEAPON ----------- Beam Rifle Beam Rifle > --- INVENTORY -------- Light Ion Engine Light Ion Engine Light Treads Aluminum Leg Aluminum Leg Wheel Wheel EM Pulse Gun Rocket Launcher Datajack [Rating: 10] Favorites ----------- Power Light Ion Engine Engine Light Ion Engine Propulsion Light Treads Treads Light Treads Leg Aluminum Leg Utility Medium Storage Unit Device Seismic Detector Storage Medium Storage Unit Protection Utility Shielding Weapon Small Laser Energy Gun Small Laser Build | -11 -10 -10 ------- Run | Yrd Mat Min Slots Evolved . | . . . Power . | . . . Propulsion . | . . . Utility . | . . . Weapon . | . . . Parts Attached 19 | 7 5 7 Power 3 | 1 1 1 Engine 3 | 1 1 1 Core . | . . . Reactor . | . . . Propulsion 5 | 2 . 3 Treads 3 | 2 . 1 Leg 2 | . . 2 Wheel . | . . . Hover . | . . . Flight . | . . . Utility 4 | 2 2 . Device 1 | 1 . . Storage 2 | 1 1 . Processor . | . . . Hackware . | . . . Protection 1 | . 1 . Artifact . | . . . Weapon 7 | 2 2 3 Energy Gun 7 | 2 2 3 Energy Cannon . | . . . Ballistic Gun . | . . . Ballistic Cannon . | . . . Launcher . | . . . Special Weapon . | . . . Impact Weapon . | . . . Slashing Weapon . | . . . Piercing Weapon . | . . . Special Melee Weapon . | . . . Unidentified Prototypes . | . . . Corrupted Parts 1 | . . 1 System Corruption 7 | . . 7 Parts Lost 9 | . 2 7 Power 2 | . 1 1 Propulsion 2 | . . 2 Utility 1 | . 1 . Weapon 4 | . . 4 Highest Loss Streak 4 | . 1 4 To Critical Strikes . | . . . Average Backups 7 | 4 8 7 Power 1 | . 1 . Propulsion 4 | 3 5 3 Utility . | . . 1 Weapon 1 | . 1 1 Tool/Special . | . . . Unused Backups 6 | . 2 4 Power . | . . . Propulsion 4 | . 2 2 Utility . | . . . Weapon 1 | . . 1 Tool/Special 1 | . . 1 Average Slot Usage (%) 95 | . 96 93 Engine 13 | . 13 12 Treads 21 | . 28 3 Leg 6 | . . 21 Device 4 | . 6 . Storage 14 | . 14 14 Protection 7 | . 5 14 Energy Gun 27 | . 27 25 Peak Build Rating 10 | 7 10 10 Average Rating 7 | 6 7 8 On Entrance 5 | . 7 10 Naked Turns . | . . . Heaviest Build 20 | 12 20 19 Greatest Support 40 | 40 40 20 Greatest Overweight (x) 6 | 2 . 6 Average Overweight (x) . | . . . Largest Inventory Capacity 10 | 8 10 10 Average Capacity 9 | 7 9 10 Most Carried 10 | 8 10 10 Average Carried 7 | 4 8 7 Final Capacity 10 | 8 10 10 Final Carried 10 | 8 10 5 Class Distribution -------------------- 100% | Mutant Dominant Class ---------------- Mutant | -10/Materials Mutant | -10/Mines Resources | -11 -10 -10 ----------- Run | Yrd Mat Min Matter Collected 350 | 270 45 35 Remotely . | . . . Salvage Created 758 | 106 502 150 Parts 45 | 7 27 11 Haulers Intercepted 2 | . 2 . Recyclers Shooed 1 | 1 . . Parts Field Recycled . | . . . Retrieved Matter . | . . . Parts Self-Destructed . | . . . Prevented . | . . . Kills | -11 -10 -10 ------- Run | Yrd Mat Min Combat Hostiles Destroyed 21 | . 16 5 Guns 20 | . 16 4 AOE 1 | . . 1 Classes Destroyed 7 | 3 4 . Worker 1 | 1 . . Tunneler 2 | 2 . . Hauler 2 | . 2 . Recycler 1 | 1 . . Operator 2 | . 2 . Swarmer 12 | . 9 3 Grunt 9 | . 7 2 Best Kill Streak 4 | 2 4 3 Combat Bots Only 4 | . 4 3 Max Kills in Single Turn 1 | 1 1 1 Gunslinging . | . . . Exploded 1 | . . 1 Melee . | . . . Uniques/NPCs Destroyed . | . . . Combat | -11 -10 -10 -------- Run | Yrd Mat Min Hostile Shots Fired 159 | . 77 82 Missed 50 | . 26 24 Hits 109 | . 51 58 Projectile 109 | . 51 58 Critical Strikes 1 | . . 1 Damage Taken 1140 | . 449 691 Core 255 | . 111 144 Absorbed by Shields . | . . . Redirected to Shielding 24 | . 6 18 Core Remaining (%) 100 | 100 . . Volleys Fired 95 | 14 48 33 Largest 2 | 2 2 2 Hottest 112 | 90 112 112 Shots Fired 176 | 28 96 52 Gun 176 | 28 96 52 Cannon . | . . . Launcher . | . . . Special . | . . . Kinetic . | . . . Thermal 152 | 28 96 28 Explosive . | . . . Electromagnetic 24 | . . 24 Robot Hit Streak 7 | 5 7 6 Robot Miss Streak 5 | 3 3 5 Penetration Max . | . . . Secondary Targets 4 | . 4 . Max Gunslinging Chain 1 | . 1 . Shots Hit Robots 96 | 13 56 27 Core Hits 41 | 5 27 9 Critical Kills . | . . . Critical Parts Destroyed . | . . . Critical Strikes 11 | 3 6 2 Burn 11 | 3 6 2 Melee Attacks . | . . . Impact . | . . . Slashing . | . . . Piercing . | . . . Sneak Attacks . | . . . Combat Hostiles . | . . . Follow-up Attacks . | . . . Damage Inflicted 1328 | 158 745 425 Guns 1260 | 158 745 357 Cannons . | . . . Explosions 68 | . . 68 Melee . | . . . Ramming . | . . . Kinetic . | . . . Thermal 1165 | 158 745 262 Explosive . | . . . Electromagnetic 163 | . . 163 Impact . | . . . Slashing . | . . . Piercing . | . . . Highest Corruption 7 | . . 7 Average Corruption 7 | . . 7 Corruption Purged . | . . . Corruption Blocked . | . . . Effects 5 | . . 5 Message Errors 3 | . . 3 Energy Discharges 1 | . . 1 Data Loss (minor) 1 | . . 1 Overload Shots . | . . . Overflow Damage . | . . . Projectiles . | . . . Explosions . | . . . Melee . | . . . Knockbacks . | . . . Impact . | . . . Kinetic . | . . . Secondary . | . . . Self-Inflicted Damage 36 | . . 36 Shots 1 | . . 1 Rammed . | . . . Targets Rammed . | . . . Kicked . | . . . Crushed . | . . . Highest Temperature 362 | 150 342 362 Average Temperature 110 | 56 99 161 Received Heat Transfer 375 | . 108 267 Effects 3 | . . 3 Energy Bleed 2 | . . 2 Short Circuit 1 | . . 1 Siege Activations . | . . . Martial Activations . | . . . Shielding Activations . | . . . Robots Disrupted . | . . . Combat Hostiles . | . . . Robots Corrupted . | . . . Combat Hostiles . | . . . Parts Fried 1 | . . 1 Impact Corruptions . | . . . Robots Melted . | . . . Combat Hostiles . | . . . Parts Melted 5 | 1 4 . Heat Transferred 3611 | 655 2288 668 Parts Sabotaged . | . . . Parts Stolen . | . . . Parts Stripped . | . . . Power Chain Reactions 1 | . . 1 Alert | -11 -10 -10 ------- Run | Yrd Mat Min Maximum Alert Level 1 | . 1 . Low Security (%) 98 | 100 97 100 Level 1 1 | . 2 . Level 2 . | . . . Level 3 . | . . . Level 4 . | . . . Level 5 . | . . . High Security . | . . . Max Security . | . . . Peak Influence 201 | 5 201 133 Initial 70 | . 3 70 Average 69 | 1 81 93 Influence Increases 635 | 20 462 153 Destroy 0b10 Robot/C 420 | . 320 100 Destroy 0b10 Robot/NC 40 | 20 20 . Destroy Leader 84 | . 64 20 Successful Hack 12 | . 12 . Disable Machine 15 | . . 15 Destroy Structure 4 | . 1 3 Lose Combat Pursuer 60 | . 45 15 Influence Decreases 592 | 15 285 292 Entered New Map 114 | . 2 112 Time Decay 388 | 15 263 110 Lost Part 90 | . 20 70 Squads Dispatched 3 | . 3 . Investigation 1 | . 1 . Extermination . | . . . Reinforcement 2 | . 2 . Assault . | . . . Garrison . | . . . Intercept . | . . . Searches Triggered . | . . . Construction Impeded . | . . . Haulers Reinforced . | . . . Active Scanning Responses . | . . . Cargo Convoy Interrupts . | . . . Stealth | -11 -10 -10 --------- Run | Yrd Mat Min Distress Signals 3 | . 3 . Communications Jammed . | . . . Distress Signals . | . . . Times Spotted 33 | . 25 8 Peak Tracking Total 6 | . 6 3 Tactical Retreats 3 | . 2 1 Traps | -11 -10 -10 ------- Run | Yrd Mat Min Traps Triggered 1 | . 1 . Indirectly . | . . . Trap Hack Attempts . | . . . Triggered . | . . . Disarmed . | . . . Reprogrammed . | . . . Reused . | . . . Traps Extracted . | . . . Installed . | . . . Triggered . | . . . Machines | -11 -10 -10 ---------- Run | Yrd Mat Min Machines Disabled 1 | . . 1 Max in Single Turn 1 | . . 1 Machines Repaired . | . . . Machines Dismantled . | . . . Machines Sabotaged . | . . . Overloaded Fab Kills . | . . . Hacking | -11 -10 -10 --------- Run | Yrd Mat Min Machines Accessed 2 | . 2 . Terminals 2 | . 2 . Fabricators . | . . . Repair Stations . | . . . Recycling Units . | . . . Scanalyzers . | . . . Garrison Access . | . . . Total Hacks 10 | . 10 . Successful 3 | . 3 . Failed 6 | . 6 . Catastrophic 1 | . 1 . Database Lockouts 1 | . 1 . Manual 12 | . 12 . Terminals 10 | . 10 . Fabricators . | . . . Repair Stations . | . . . Recycling Units . | . . . Scanalyzers . | . . . Garrison Access . | . . . Terminal Hacks 2 | . 2 . Robot Analysis 2 | . 2 . Fabricator Hacks . | . . . Repair Station Hacks . | . . . Recycling Unit Hacks . | . . . Scanalyzer . | . . . Garrison Access Hacks . | . . . Unauthorized Hacks 1 | . 1 . Terminals 1 | . 1 . Operators 1 | . 1 . Fabricators . | . . . Repair Stations . | . . . Recycling Units . | . . . Scanalyzers . | . . . Garrison Access . | . . . Data Cores Recovered . | . . . Used . | . . . Hacking Detections 2 | . 2 . Full Trace Events . | . . . Feedback Events . | . . . Feedback Blocked . | . . . Robot Schematics Acquired . | . . . Robots Built . | . . . Authchips . | . . . Time . | . . . Total Robot Build Rating . | . . . Part Schematics Acquired . | . . . Parts Built . | . . . Authchips . | . . . Time . | . . . Total Part Build Rating . | . . . Parts Repaired . | . . . Time . | . . . Parts Recycled . | . . . Recycled Matter . | . . . Retrieved Matter . | . . . Retrieved Components . | . . . Parts Scanalyzed . | . . . Part Schematics Acquired . | . . . Parts Damaged . | . . . Bothacking | -11 -10 -10 ------------ Run | Yrd Mat Min Used RIF Installer . | . . . Robots Hacked . | . . . Non-combat . | . . . Combat . | . . . Robot Hacks Applied . | . . . Relay Couplers Released . | . . . Fabnet Peak Effective % . | . . . Robots Rewired . | . . . Allies Hacked . | . . . Hacks Repelled . | . . . Allies | -11 -10 -10 -------- Run | Yrd Mat Min Total Allies . | . . . Largest Group . | . . . Highest-Rated Group . | . . . Highest-Rated Ally . | . . . Total Orders . | . . . Ally Attacks . | . . . Total Damage . | . . . Kills . | . . . Allies Corrupted . | . . . Allies Melted . | . . . Intel | -11 -10 -10 ------- Run | Yrd Mat Min Active Infowar (turns) 358 | 86 272 . Seismic 358 | 86 272 . Robot Analysis Total 2 | . 2 . Derelict Logs Recovered . | . . . Drone Launches . | . . . Drone Recoveries . | . . . Exploration | -11 -10 -10 ------------- Run | Yrd Mat Min Turns Passed 1014 | 178 606 230 Spaces Moved 460 | 76 275 109 Core 7 | 5 . 2 Treads 346 | 71 275 . Legs 107 | . . 107 Wheels . | . . . Hover . | . . . Flight . | . . . Fastest Speed 50 | 50 160 120 Average Speed 150 | 155 160 124 Slowest Speed 350 | 160 160 350 Overloaded Moves . | . . . Propulsion Burnouts . | . . . Robots Hopped . | . . . Potential Cave-ins . | . . . Cave-ins Triggered . | . . . Exploration Rate (%) 27 | 5 49 28 Regions Visited 2 Branch Regions 1 Pre-discovered Areas . | . . . Known Exits Taken . | . . . Unknown Exits Taken 2 | 1 1 . Scrap Searched . | . . . Spaces Dug . | . . . Terrain Destroyed 3 | . . 3 Melee . | . . . Projectile . | . . . AOE 3 | . . 3 Terrain Rammed . | . . . Walls Destroyed . | . . . Machines Disabled . | . . . Actions | -11 -10 -10 --------- Run | Yrd Mat Min Total 602 | 104 346 152 Wait 11 | . 9 2 Move 458 | 75 274 109 Hop . | . . . Pick Up 13 | 8 5 . Fast Attach 12 | 7 3 2 Attach 6 | . 1 5 Detach . | . . . Swap 1 | . 1 . Drop 6 | . 5 1 Fire 95 | 14 48 33 Melee . | . . . Ram . | . . . Kick . | . . . Crush . | . . . Escape Stasis . | . . . Rewire . | . . . Trap . | . . . Miscellaneous . | . . . Route ------- -11/Scrapyard -10/Materials (discovered 2 exits: [*Min x2]) -10/Mines History --------- Turn | Location | Event 14 | -11/Scrapyard | Discovered new exit (range 15) 179 | -11/Scrapyard | Entered Materials 221 | -10/Materials | Central database locked down 313 | -10/Materials | Build established: Mutant 631 | -10/Materials | Discovered new exit (range 11) 687 | -10/Materials | Discovered new exit (range 12) 785 | -10/Materials | Entered Mines 792 | -10/Mines | Core integrity fell below 50% 968 | -10/Mines | Found a hidden stash of uninstalled traps 990 | -10/Mines | Core integrity fell below 20% 1015 | -10/Mines | Destroyed by G-34 Mercenary with Small Laser Last Messages --------------- 00887_ Integrated Corrupted Particle Gun (+7). 00888_ Acquired 10 matter. 00895_ R-06 Scavenger collects Corrupted Aluminum Leg. 00905_ RD&UI:UN OR&G:#GSCA0W C=WQHG2 00924_ E6ET6TVYYUS/FI|RWSSYWQN6YJV8E2%FZA=HJ 00936_ K-01 Serf collects debris. 00962_ U/5|QZV7SVO>YCJ55#C GY1 00968_ A stash of uninstalled traps is collected here! 00980_ Lgt. Ion Engine destroyed. 00989_ System corrupted: Component data lost. 00992_ EM Pulse Gun destroyed. 00995_ G-34 Mercenary destroyed. 00998_ Acquired Sml. Laser. 01002_ Overheating: Energy bleed (-9). 01005_ Aluminum Leg destroyed. 01005_ Critical hit (Burn: +37). 01008_ System corrupted: Energy discharge (-9). 01011_ Particle Gun destroyed. Map ----- +----------------------------------------------------+ | ???????????####### #??# #??????????????????? | | ?????????????????# #??# ##??????????????????? | | ?????????????????# #??# ##???????????????????? | | #####???????????? ??## ###????????????????????? | | ###??????????## ???# #??????????????????????? | | % ##??????????# #### #??????????????????????? | | #% = =#?????????## ## ##?????????????????????? | | " [ #?????????# # ##????????????????????? | | ## ##?????????# #????????????????????? | | ## ####??????????# #####????????????????? | | ?# #?????????????## #???????????? | | ? ??????????????# ## #???????????? | | "" ??????????????# ###############???????????? | | "" ?????????????## #?????????????????????????? | | "" ????????????# &#?????????????????????????? | | ????????????# & #?????????????????????????? | | ?### ????????????## g##????????????????????????? | | ???? ?????????????## ##???????????????????????? | | ???? ?????????????## g ##??????????????????????? | | ????? ??????????????# ##?????????????????????? | | ????????????????????# #?????????????????????? | | ????????????????????## #?????????????????????? | | ?????????????????????## ##?????????????????????? | | ??????????????????????# #??????????????????????? | | ??????????????????????## #??????????????????????? | | ???????????????????????#=@#??????????????????????? | | ???????????????????????#%!#??????????????????????? | | ?????????????????????? *= #??????????????????????? | | ????????????????????? ??????????????????????? | | ????????????????????#### ??????????????????????? | | ???????????????????????# ?????????????????????? | | ??????????????????????? ?????????????????????? | | ??????????????????????? #????????????????????? | | ???????????????????????# #????????????????????? | | ???????????????????????## ##????????????????????? | | ????????????????????????? ##?????????????????????? | | ????????????????????????? #??????????????????????? | | ????????????????????????? ???????????????????????? | | ????????????????????????? ???????????????????????? | | ????????????????????????? ???????????????????????? | | ????????????????????????? ???????????????????????? | | ?????????????????????????????????????????????????? | | ?????????????????????????????????????????????????? | | ?????????????????????????????????????????????????? | | ?????????????????????????????????????????????????? | | ?????????????????????????????????????????????????? | | ?????????????????????????????????????????????????? | | ?????????????????????????????????????????????????? | | ?????????????????????????????????????????????????? | | ?????????????????????????????????????????????????? | +----------------------------------------------------+ Best States ------------- Heat Dissipation 25 Energy Generation 10 Energy Capacity 125 Matter Stores 300 Matter Capacity 300 Sight Range 16 Terrain Scan Density 10 Utility Shielding 33 Evasion (%) 55 Recoil Reduction 2 Item Schematics ----------------- None Robot Schematics ------------------ None Fabricated ------------ Nothing Repaired ---------- Nothing Alien Tech Used ----------------- None Achievements -------------- None Challenges ------------ None Game ------ Seed ShrapnelGravitonMaul Manual? 0 Play Time 00:09:08 Cumulative 29.1 hours Start 2025.08.19 @ 22:15:32 End 2025.08.19 @ 22:39:49 Sessions 1 Manual Loads 0 Difficulty Rogue Special Mode None Game No. 51 Rogue 51 Adventurer 0 Explorer 0 Win Type - Total 0 Types 0/0/0/0/0/0/0/0/0/0 Lore% 32 Gallery% 31 Achievement% 28 Wizard Run 0 Options --------- Layout 1 ASCII 0 Keyboard 0 Movement Numpad Keybinds 0 Fullscreen 1 Font 24/Smallcaps Map View 50x35 Zoom Use 0% Tactical HUD 1 Map Filters NONE Filters NONE Steam 1 RUN: 4be65331-71b2-420f-a651-1e06db207ded